bitfinex-derivatives/quotes_ETHF0:USTF0_20241231
["timestamp","ask_amount","ask_price","bid_price","bid_amount"]
[1735624478413,0.29927,3346.4,3346.2,4.68726742]
[1735624478616,0.29927,3346.3,3346.2,4.68726742]
[1735624479014,0.4583,3346.5,3346.2,4.68726742]
[1735624479211,0.29926,3346.4,3346.2,4.68726742]
[1735624479423,0.29927,3346.3,3346.2,4.68726742]
[1735624481123,0.29927,3346.3,3346.1,4.68726742]
[1735624481316,0.29926,3346.4,3346.1,4.98654742]
[1735624481516,0.29926,3346.4,3346.2,0.432]
[1735624481924,0.29926,3346.4,3346.2,5.11926742]
[1735624482523,0.4583,3346.5,3346.2,5.11926742]
[1735624482724,1.19464,3346.7,3346.2,5.55526742]
[1735624483019,1.19464,3346.7,3346.3,0.29927]
[1735624483228,1.19464,3346.7,3346.4,40.8]
[1735624484124,1.19464,3346.7,3346.4,41.09926]
[1735624484917,0.8954,3346.7,3346.4,40.8]
[1735624485121,7.90113694,3346.9,3346.5,0.29925]
[1735624485421,0.29922,3346.8,3346.5,0.29924]
[1735624485621,8.20035694,3346.9,3346.6,0.29924]
[1735624486329,7.90113694,3346.9,3346.4,40.8]
[1735624486521,7.90113694,3346.9,3346.8,0.29922]
[1735624486719,3.2078,3346.9,3346.8,0.29922]
[1735624487528,3.2078,3346.9,3346.8,13.14394087]
[1735624488429,3.2078,3346.9,3346.8,6.58028103]
[1735624489723,3.2078,3346.9,3346.8,5.86331868]
[1735624490224,0.2992,3347.1,3346.8,5.56409868]
[1735624490423,0.2992,3347.1,3346.9,0.29921]
[1735624491434,0.9004,3347.3,3346.8,5.56409868]
[1735624491731,0.2992,3347.1,3346.9,0.29921]
[1735624493637,1.19958,3347.3,3347.0,0.2992]
[1735624494131,0.29918,3347.3,3347.0,0.2992]
[1735624494435,0.8689,3347.3,3346.8,0.8783]
[1735624494628,0.2992,3347.1,3346.9,0.29921]
[1735624495225,0.2992,3347.1,3346.8,0.8783]
[1735624495426,0.2992,3347.1,3346.8,1.17752]
[1735624496536,0.29919,3347.2,3346.9,0.29921]
[1735624496728,0.2992,3347.1,3346.8,1.17752]
[1735624497228,0.2992,3347.1,3346.8,0.8783]
[1735624497435,0.29919,3347.2,3346.9,0.29921]
[1735624497631,0.29919,3347.2,3346.8,0.8783]
[1735624497826,1.16808,3347.3,3346.9,3.2078]
[1735624498026,0.4434,3347.3,3346.9,3.2078]
[1735624498227,3.2078,3347.4,3346.9,3.2078]
[1735624498432,3.2078,3347.4,3347.3,0.29918]
[1735624498834,3.2078,3347.4,3347.2,0.29918]
[1735624499233,3.2078,3347.4,3347.3,0.4575]
[1735624499431,0.29916,3347.5,3347.3,0.4575]
[1735624499633,0.8866,3347.6,3347.3,0.4575]
[1735624499833,0.29917,3347.4,3347.3,0.4575]
[1735624502534,0.29916,3347.5,3347.3,0.75668]
[1735624503938,0.8866,3347.6,3347.3,0.4575]
[1735624504138,0.29916,3347.5,3347.3,0.4575]
[1735624504828,0.29916,3347.5,3347.3,0.75668]
[1735624505228,0.8866,3347.6,3347.3,0.75668]
[1735624505438,1.18575,3347.6,3347.3,0.75668]
[1735624506139,1.18575,3347.6,3347.4,0.29917]
[1735624506340,0.8866,3347.6,3347.4,0.29917]
[1735624506543,0.8866,3347.6,3347.5,0.29916]
[1735624507741,1.18575,3347.6,3347.4,0.71446]
[1735624508543,0.8866,3347.6,3347.4,0.71446]
[1735624513646,1.18575,3347.6,3347.4,0.71446]
[1735624513844,1.18575,3347.6,3347.3,0.75667]
[1735624514241,1.18575,3347.6,3347.1,4.2808316]
[1735624514242,0.29919,3347.2,3347.1,3.2078]
[1735624515242,1.3722216,3347.2,3347.1,3.2078]
[1735624516340,2.26767885,3347.4,3346.7,3.2078]
[1735624516542,0.29922,3346.8,3346.7,3.2078]
[1735624516749,0.29925,3346.5,3346.4,4.68579868]
[1735624517040,0.29924,3346.6,3346.4,4.68579868]
[1735624517245,0.4201,3346.5,3346.4,4.68579868]
[1735624517652,0.4201,3346.5,3346.2,0.73277]
[1735624517842,0.71935,3346.5,3346.2,0.73277]
[1735624518451,0.4201,3346.5,3346.2,0.73277]
[1735624519146,0.4201,3346.5,3346.2,0.4335]
[1735624519341,0.71935,3346.5,3346.2,0.73277]
[1735624519945,0.71935,3346.5,3346.2,0.4335]
[1735624520544,0.71935,3346.5,3346.2,0.73277]
[1735624522051,0.4201,3346.5,3346.3,0.29926]
[1735624522458,0.4201,3346.5,3346.2,0.73277]
[1735624522459,0.71935,3346.5,3346.2,0.73277]
[1735624522657,0.71935,3346.5,3346.3,40.8]
[1735624522851,0.4201,3346.5,3346.3,40.8]
[1735624524259,0.71935,3346.5,3346.3,40.8]
[1735624524465,0.4201,3346.5,3346.3,40.8]
[1735624524666,0.29926,3346.4,3346.3,40.8]
[1735624525659,2.68777885,3346.5,3346.0,4.68579868]
[1735624525860,3.50707,3346.3,3345.9,4.98508868]
[1735624526060,3.50707,3346.3,3346.0,41.09929]
[1735624526260,0.4202,3346.2,3346.0,41.09929]
[1735624526863,0.71947,3346.2,3346.0,41.09929]
[1735624529667,0.72314,3346.6,3346.3,0.29926]
[1735624529868,0.72314,3346.6,3346.4,0.4199]
[1735624529869,0.4166,3346.6,3346.4,0.4199]
[1735624530059,9.08212695,3347.1,3346.5,0.4171]
[1735624530262,0.437,3347.0,3346.9,0.29921]
[1735624530458,4.69333694,3347.2,3346.8,3.2078]
[1735624530670,4.69333694,3347.2,3347.1,0.29919]
[1735624530969,5.87432695,3347.4,3347.1,40.8]
[1735624531164,0.437,3347.5,3347.2,0.4199]
[1735624531364,0.437,3347.5,3347.2,3.6277]
[1735624531570,0.437,3347.5,3347.3,0.4171]
[1735624531769,0.437,3347.5,3347.4,0.29917]
[1735624532565,0.437,3347.5,3347.3,0.4171]
[1735624532566,3.2078,3348.0,3347.3,2.68477885]
[1735624532870,4.69333694,3348.2,3348.0,0.29911]
[1735624533569,4.69333694,3348.2,3347.6,6.66347885]
[1735624533770,4.69333694,3348.2,3348.1,0.2991]
[1735624534072,3.6448,3348.4,3348.1,0.2991]
[1735624534268,3.6448,3348.4,3348.2,0.4423]
[1735624534770,3.94388,3348.4,3348.2,0.4423]
[1735624535473,3.6448,3348.4,3348.2,0.4423]
[1735624536271,0.2991,3348.2,3347.8,0.29913]
[1735624536464,3.6448,3348.4,3347.7,0.74744]
[1735624536668,0.29911,3348.1,3347.7,0.74744]
[1735624537359,3.6448,3348.4,3347.7,0.74744]
[1735624537668,0.2991,3348.2,3347.7,0.74744]
[1735624537861,3.6448,3348.4,3347.7,0.74744]
[1735624538061,3.6448,3348.4,3347.6,3.2078]
[1735624538258,0.29914,3347.7,3347.6,3.2078]
[1735624538464,0.29912,3348.0,3347.6,3.50695]
[1735624538972,0.29913,3347.8,3347.6,3.2078]
[1735624539866,0.29913,3347.9,3347.5,0.29915]
[1735624540266,0.29911,3348.0,3347.5,0.29915]
[1735624540563,0.4417,3348.1,3347.4,0.73257]
[1735624540564,0.29914,3347.8,3347.4,0.73257]
[1735624541776,0.4417,3348.1,3347.4,0.4334]
[1735624541967,0.29915,3347.6,3347.4,0.4334]
[1735624542266,0.29915,3347.7,3347.4,0.73257]
[1735624542773,0.29915,3347.6,3347.4,0.4334]
[1735624542968,0.4417,3348.1,3347.2,3.2078]
[1735624543274,2.26767885,3347.6,3347.1,4.68579868]
[1735624543471,1.3049,3347.5,3347.0,0.4271]
[1735624543674,0.8832,3347.5,3347.2,0.29918]
[1735624543876,1.18236,3347.5,3347.2,0.29918]
[1735624544771,0.8832,3347.5,3347.3,0.29917]
[1735624545168,1.18236,3347.5,3347.2,0.29918]
[1735624546076,0.29918,3347.3,3347.0,3.9341]
[1735624546878,0.2992,3347.0,3346.8,4.68579868]
[1735624547072,0.8832,3347.5,3346.7,5.10329868]
[1735624547271,0.29918,3347.3,3347.0,0.2992]
[1735624547472,0.8832,3347.5,3346.9,41.09921]
[1735624547767,0.29919,3347.2,3346.9,41.09921]
[1735624547967,0.2992,3347.0,3346.9,40.8]
[1735624548372,0.2992,3347.0,3346.7,0.4175]
[1735624548577,2.70867885,3347.3,3346.6,3.2078]
[1735624548771,0.29923,3346.7,3346.6,3.2078]
[1735624548974,0.29923,3346.7,3346.6,44.0078]
[1735624549183,0.29923,3346.8,3346.6,44.0078]
[1735624549777,0.29923,3346.8,3346.6,40.8]
[1735624550274,0.8904,3346.9,3346.6,40.8]
[1735624550275,0.29923,3346.7,3346.6,40.8]
[1735624551483,0.8904,3346.9,3346.6,40.8]
[1735624551685,0.29923,3346.8,3346.6,40.8]
[1735624552080,0.8904,3346.9,3346.7,0.29923]
[1735624552481,0.8904,3346.9,3346.6,40.8]
[1735624552785,0.29922,3346.8,3346.6,40.8]
[1735624553384,0.8904,3346.9,3346.6,40.8]
[1735624553385,0.29923,3346.7,3346.6,40.8]
[1735624553686,0.8904,3346.9,3346.6,41.09923]
[1735624553687,1.18961,3346.9,3346.6,41.09923]
[1735624553877,0.29923,3346.8,3346.6,40.8]
[1735624554380,3.2078,3347.2,3346.6,40.8]
[1735624554587,3.2078,3347.2,3346.6,41.2182]
[1735624554783,3.2078,3347.2,3347.0,0.2992]
[1735624555680,3.2078,3347.2,3346.6,41.2182]
[1735624555876,3.50699,3347.2,3346.9,0.29921]
[1735624556280,3.2078,3347.2,3346.6,41.2182]
[1735624556591,3.2078,3347.2,3347.0,0.2992]
[1735624556782,3.2078,3347.2,3347.1,0.4332]
[1735624557089,3.2078,3347.2,3347.1,0.73239]
[1735624557582,3.2078,3347.2,3347.1,0.4332]
[1735624558485,3.2078,3347.2,3347.1,0.8677]
[1735624559186,3.50699,3347.2,3347.1,0.8677]
[1735624559987,3.2078,3347.2,3347.1,0.8677]
[1735624560188,3.50699,3347.2,3347.1,0.8677]
[1735624561486,0.29919,3347.2,3347.1,0.8677]
[1735624562886,0.424,3347.5,3346.7,1.188]
[1735624563091,0.29923,3346.8,3346.5,3.2078]
[1735624563391,0.29924,3346.6,3346.5,3.2078]
[1735624563586,0.29925,3346.5,3346.4,4.68579868]
[1735624564498,0.74254,3346.6,3346.3,0.29927]
[1735624565083,0.29928,3346.2,3345.9,3.2078]
[1735624565290,0.4433,3346.6,3345.9,3.2078]
[1735624565495,0.29925,3346.5,3346.2,0.29927]
[1735624565692,0.4433,3346.6,3346.3,0.29926]
[1735624565889,0.4433,3346.6,3346.4,0.4402]
[1735624566188,0.4433,3346.6,3346.4,0.73945]
[1735624566392,0.74254,3346.6,3346.4,0.4402]
[1735624567491,3.2078,3346.9,3346.4,0.4402]
[1735624567694,0.29923,3346.8,3346.5,1.17784]
[1735624568094,0.29919,3347.2,3346.9,0.29921]
[1735624568295,4.4894,3347.4,3346.5,0.8786]
[1735624568296,4.4894,3347.4,3347.2,0.29918]
[1735624568496,3.2078,3347.4,3347.2,0.29918]
[1735624568692,3.2078,3347.4,3347.1,0.8786]
[1735624569195,0.29918,3347.3,3347.1,0.4287]
[1735624570499,0.29916,3347.6,3347.2,0.29918]
[1735624571095,0.29914,3347.7,3347.2,0.29918]
[1735624571403,0.29916,3347.6,3347.2,0.29918]
[1735624572997,0.29916,3347.5,3347.1,0.72789]
[1735624573393,3.2078,3347.8,3347.1,0.4287]
[1735624573888,0.29916,3347.5,3347.2,0.29918]
[1735624574195,0.29915,3347.7,3347.1,3.6365]
[1735624574393,0.29914,3347.7,3347.4,0.29916]
[1735624575105,0.29914,3347.8,3347.5,0.29916]
[1735624575401,0.72403,3347.9,3347.6,0.72365]
[1735624575901,0.72403,3347.9,3347.6,41.52365]
[1735624576393,0.72403,3347.9,3347.6,41.2245]
[1735624576800,0.29913,3347.8,3347.6,41.2245]
[1735624576997,0.29914,3347.7,3347.6,41.2245]
[1735624577299,0.29914,3347.8,3347.6,41.2245]
[1735624578995,0.4249,3347.9,3347.6,0.4245]
[1735624579197,0.29914,3347.7,3347.6,0.4245]
[1735624579397,0.4249,3347.9,3347.6,0.4245]
[1735624579794,0.29913,3347.8,3347.6,0.4245]
[1735624584001,0.29914,3347.7,3347.6,0.4245]
[1735624587397,0.4249,3347.9,3347.6,0.4245]
[1735624587600,0.4249,3347.9,3347.7,0.29914]
[1735624587797,0.4249,3347.9,3347.7,0.75114]
[1735624588600,4.0644,3348.2,3347.7,0.452]
[1735624588805,4.0644,3348.2,3347.9,0.29912]
[1735624588806,4.3635,3348.2,3347.9,0.29912]
[1735624589005,4.3635,3348.2,3347.7,0.452]
[1735624589006,4.0644,3348.2,3347.7,0.452]
[1735624589509,4.3635,3348.2,3347.9,0.29911]
[1735624590208,1.1557,3348.2,3347.9,0.29911]
[1735624592004,0.8566,3348.2,3347.7,0.452]
[1735624592212,0.29911,3348.1,3347.8,0.29912]
[1735624592414,0.7139,3348.2,3347.9,0.29912]
[1735624592705,0.2991,3348.2,3347.9,0.29912]
[1735624592912,0.2991,3348.2,3348.0,0.4316]
[1735624593912,0.4149,3348.3,3347.7,0.452]
[1735624594119,0.29912,3348.0,3347.7,0.75114]
[1735624594302,0.4313,3348.2,3347.6,5.11029868]
[1735624594506,0.29914,3347.7,3347.6,4.68579868]
[1735624594702,0.4576,3347.9,3347.5,4.68579868]
[1735624594910,0.4394,3347.6,3347.5,4.68579868]
[1735624595208,0.4394,3347.6,3347.5,4.98495868]
[1735624595620,0.29913,3347.9,3347.5,4.68579868]
[1735624595808,0.29913,3347.9,3347.6,0.29914]
[1735624596006,0.29913,3347.8,3347.7,0.4361]
[1735624597512,0.29915,3347.6,3347.4,3.50696]
[1735624598217,0.4394,3348.1,3347.4,3.2078]
[1735624598413,0.29916,3347.5,3347.4,3.2078]
[1735624599515,0.4394,3348.1,3347.4,3.2078]
[1735624599813,0.29914,3347.8,3347.5,0.29915]
[1735624600317,0.29914,3347.8,3347.6,0.29915]
[1735624601316,0.29914,3347.8,3347.5,0.29915]
[1735624601507,0.4394,3348.1,3347.4,3.2078]
[1735624601707,0.29915,3347.6,3347.4,3.50696]
[1735624601915,0.4337,3347.5,3347.4,3.50696]
[1735624605015,0.4337,3347.5,3347.4,0.29916]
[1735624605823,0.29914,3347.8,3347.3,0.8632]
[1735624606021,0.29914,3347.8,3347.6,0.29915]
[1735624610221,0.29915,3347.7,3347.4,4.98495868]
[1735624610424,0.29915,3347.7,3347.5,0.29915]
[1735624610726,0.4327,3347.9,3347.6,0.29915]
[1735624610727,0.29914,3347.8,3347.6,0.29915]
[1735624611223,0.4327,3347.9,3347.6,0.29915]
[1735624611521,0.29914,3347.7,3347.6,0.29915]
[1735624612018,0.29914,3347.7,3347.4,4.68579868]
[1735624612323,0.29914,3347.7,3347.5,0.29915]
[1735624613023,0.29914,3347.8,3347.6,0.29915]
[1735624613634,0.4327,3347.9,3347.5,4.68579868]
[1735624613923,0.73183,3347.9,3347.7,0.29914]
[1735624614923,0.73183,3347.9,3347.8,0.4431]
[1735624616216,0.73183,3347.9,3347.8,5.12889868]
[1735624616924,0.73183,3347.9,3347.8,4.68579868]
[1735624622924,8.20024694,3348.1,3347.9,0.29912]
[1735624623121,8.20024694,3348.1,3347.8,4.68579868]
[1735624623122,7.90113694,3348.1,3347.8,4.68579868]
[1735624623423,4.69333694,3348.1,3347.9,0.29912]
[1735624623623,4.69333694,3348.1,3347.9,1.18332]
[1735624624422,5.15093694,3348.2,3348.0,4.68579868]
[1735624624627,0.29911,3348.1,3348.0,4.68579868]
[1735624626834,5.77458885,3348.1,3348.0,4.68579868]
[1735624627024,0.29911,3348.0,3347.9,4.68579868]
[1735624627223,0.72481,3348.0,3347.9,4.68579868]
[1735624628125,5.11903694,3348.0,3347.7,4.68579868]
[1735624628330,0.29913,3347.8,3347.7,4.68579868]
[1735624629030,0.4171,3347.9,3347.6,7.02255984]
[1735624629031,5.11043694,3347.9,3347.6,4.68579868]
[1735624629227,0.29914,3347.7,3347.6,4.68579868]
[1735624630127,8.50694,3347.7,3347.6,2.43469868]
[1735624630331,0.29915,3347.6,3347.5,1.51179868]
[1735624630533,0.457,3347.6,3347.4,7.02255984]
[1735624630833,2.56683885,3347.5,3347.4,7.02255984]
[1735624631334,7.56683885,3347.5,3347.4,7.02255984]
[1735624632035,0.29923,3346.7,3346.6,0.4151]
[1735624637930,0.29923,3346.7,3346.6,41.2151]
[1735624641240,0.29923,3346.7,3346.6,0.4151]
[1735624644736,3.2078,3346.8,3346.7,0.29923]
[1735624644937,0.29919,3347.2,3346.9,0.29921]
[1735624645141,0.29919,3347.2,3347.0,0.8678]
[1735624645445,3.52709744,3347.3,3347.2,0.29919]
[1735624645646,2.14429744,3347.3,3347.2,0.29919]
[1735624646342,0.29915,3347.6,3347.3,0.29918]
[1735624646939,0.29915,3347.6,3347.2,0.29918]
[1735624647144,0.29917,3347.5,3347.1,3.95049]
[1735624647538,0.29915,3347.6,3347.3,0.29918]
[1735624647738,0.29914,3347.7,3347.4,0.29917]
[1735624648043,2.26767885,3348.0,3347.1,3.6513]
[1735624648249,0.29915,3347.6,3347.2,0.29918]
[1735624648442,3.2078,3347.7,3347.1,3.6513]
[1735624648745,0.29912,3347.9,3347.5,0.29916]
[1735624649042,3.2078,3348.1,3347.5,0.29916]
[1735624649043,0.29913,3347.8,3347.5,0.29916]
[1735624649239,0.29913,3347.8,3347.6,0.4469]
[1735624649547,0.29913,3347.8,3347.7,0.4458]
[1735624650635,0.29913,3347.8,3347.7,0.8622]
[1735624658551,5.47547885,3348.0,3347.1,3.2078]
[1735624658851,0.29918,3347.3,3347.2,0.4185]
[1735624659151,0.29918,3347.3,3347.2,0.8754]
[1735624668051,2.26767885,3347.4,3346.6,7.02255984]
[1735624668254,0.29923,3346.7,3346.6,7.02255984]
[1735624668552,0.29923,3346.8,3346.6,47.82255984]
[1735624668854,3.6471,3347.2,3346.6,48.12178984]
[1735624668855,0.29922,3346.9,3346.6,48.12178984]
[1735624669152,3.6471,3347.2,3346.6,41.09923]
[1735624669345,0.29922,3346.9,3346.7,1.2971]
[1735624671355,0.29922,3346.9,3346.7,1.59633]
[1735624671548,0.29922,3346.9,3346.7,1.2971]
[1735624672156,0.29922,3346.9,3346.7,1.59633]
[1735624672356,0.29922,3346.9,3346.7,1.2971]
[1735624672560,0.29922,3346.8,3346.7,0.4182]
[1735624672849,0.29925,3346.5,3346.4,0.9082]
[1735624673049,0.29925,3346.5,3346.4,1.3429]
[1735624673749,0.29926,3346.4,3346.3,7.02255984]
[1735624673955,0.29927,3346.2,3346.1,44.0078]
[1735624674854,0.29927,3346.2,3346.1,3.2078]
[1735624675853,0.4164,3346.4,3346.0,41.256]
[1735624676057,0.29928,3346.1,3346.0,41.256]
[1735624677057,0.29928,3346.2,3346.0,41.256]
[1735624677356,0.8435,3346.7,3346.0,41.256]
[1735624677661,0.29928,3346.1,3346.0,41.256]
[1735624677958,0.29928,3346.2,3346.0,41.256]
[1735624680957,3.6528,3346.8,3346.0,41.256]
[1735624681359,0.29926,3346.4,3346.1,0.29928]
[1735624681762,5.92047885,3346.8,3346.0,41.256]
[1735624682058,0.29928,3346.1,3346.0,41.256]
[1735624682256,2.26767885,3346.2,3345.7,4.1238]
[1735624682455,0.29931,3345.8,3345.7,0.4581]
[1735624685365,0.4578,3346.1,3345.4,0.4577]
[1735624685366,2.26767885,3345.9,3345.4,0.4577]
[1735624685560,0.29934,3345.5,3345.4,0.4577]
[1735624685862,0.29936,3345.3,3345.2,0.8616]
[1735624686665,0.29938,3345.0,3344.9,3.2078]
[1735624687261,0.29938,3345.1,3344.9,3.2078]
[1735624687658,0.29938,3345.0,3344.9,3.2078]
[1735624687861,5.47547885,3345.6,3345.0,0.29938]
[1735624688264,5.47547885,3345.6,3345.1,0.4358]
[1735624688460,0.29935,3345.4,3345.1,0.4358]
[1735624688666,3.2078,3345.6,3345.2,0.4407]
[1735624688870,0.29932,3345.8,3345.4,0.29935]
[1735624689070,0.29933,3345.6,3345.3,0.75505]
[1735624689363,0.29932,3345.7,3345.4,0.29934]
[1735624690755,2.56698885,3345.9,3345.5,0.29933]
[1735624691064,0.29931,3345.9,3345.6,0.29933]
[1735624691370,0.29931,3345.9,3345.3,0.4557]
[1735624691371,0.4537,3346.0,3345.5,0.29933]
[1735624691565,0.2993,3345.9,3345.5,0.29933]
[1735624693272,0.29929,3346.1,3345.8,0.29931]
[1735624693565,3.2078,3346.2,3346.0,0.29929]
[1735624693867,3.2078,3346.2,3346.0,41.09929]
[1735624694065,3.2078,3346.2,3346.0,40.8]
[1735624695067,3.2078,3346.2,3346.1,0.29928]
[1735624695267,3.2078,3346.2,3346.0,40.8]
[1735624695465,3.50708,3346.2,3346.0,40.8]
[1735624696261,3.2078,3346.2,3346.1,0.29928]
[1735624696666,3.2078,3346.2,3346.0,40.8]
[1735624696859,3.50708,3346.2,3346.0,40.8]
[1735624697060,3.2078,3346.2,3346.0,40.8]
[1735624697259,0.29926,3346.5,3346.1,0.29928]
[1735624697456,0.29926,3346.5,3345.9,1.5867]
[1735624697457,0.29925,3346.5,3345.9,1.5867]
[1735624697664,0.29927,3346.3,3345.9,1.5867]
[1735624697967,0.29927,3346.2,3345.9,1.5867]
[1735624698376,2.26767885,3346.6,3345.9,1.2874]
[1735624698562,0.29923,3346.7,3346.3,0.29927]
[1735624698758,3.2078,3347.0,3346.4,0.4553]
[1735624698963,0.29925,3346.5,3346.4,0.4553]
[1735624699266,0.29922,3346.8,3346.4,0.4553]
[1735624699567,0.29925,3346.5,3346.4,0.4553]
[1735624699961,0.29922,3346.8,3346.4,0.4553]
[1735624700165,0.29924,3346.7,3346.4,0.4553]
[1735624701267,3.2078,3347.0,3346.4,0.4553]
[1735624701462,0.29922,3346.8,3346.4,0.75455]
[1735624701656,0.29922,3346.8,3346.5,0.4162]
[1735624701861,0.29922,3346.8,3346.6,0.4285]
[1735624703076,0.29922,3346.9,3346.6,0.4285]
[1735624704874,3.2078,3347.0,3346.6,0.4285]
[1735624705073,0.29921,3346.9,3346.6,0.4285]
[1735624706171,3.2078,3347.0,3346.6,0.4285]
[1735624706467,0.29922,3346.8,3346.6,0.4285]
[1735624706673,0.29923,3346.7,3346.6,0.4285]
[1735624715890,7.142843,3347.1,3346.6,0.4285]
[1735624716190,0.29923,3346.8,3346.6,0.4285]
[1735624717191,0.29923,3346.7,3346.6,0.4285]
[1735624721896,0.29925,3346.5,3346.4,0.4553]
[1735624722089,7.142843,3347.1,3346.4,0.4553]
[1735624722396,0.29924,3346.6,3346.4,0.4553]
[1735624722994,7.142843,3347.1,3346.4,0.75456]
[1735624723199,0.29924,3346.7,3346.4,0.75456]
[1735624723498,0.2992,3347.0,3346.4,0.75456]
[1735624723695,7.142843,3347.1,3346.4,0.4553]
[1735624723996,0.29923,3346.7,3346.4,0.75456]
[1735624724697,0.29924,3346.6,3346.4,0.4553]
[1735624725295,7.142843,3347.1,3346.4,0.4553]
[1735624725595,0.29923,3346.8,3346.5,0.29924]
[1735624726198,0.29923,3346.7,3346.4,0.75455]
[1735624726797,0.29923,3346.7,3346.5,0.29925]
[1735624731497,0.29924,3346.6,3346.4,0.75455]
[1735624733899,0.29923,3346.7,3346.5,0.29925]
[1735624735495,3.814953,3347.0,3346.8,0.29922]
[1735624735896,8.20979659,3347.1,3346.9,1.61001]
[1735624736102,8.20979659,3347.1,3347.0,40.8]
[1735624737400,3.507,3347.1,3347.0,40.8]
[1735624737601,3.2078,3347.1,3346.7,0.29922]
[1735624737802,0.29921,3346.9,3346.7,0.29922]
[1735624738205,0.29921,3346.9,3346.8,40.8]
[1735624738500,0.29921,3347.0,3346.8,40.8]
[1735624738711,3.82614468,3347.0,3346.8,40.8]
[1735624739004,0.29923,3346.7,3346.6,1.3261]
[1735624739305,0.29923,3346.7,3346.6,0.4162]
[1735624739502,0.29923,3346.7,3346.5,44.0078]
[1735624739902,0.29923,3346.7,3346.5,41.09925]
[1735624740103,0.29923,3346.7,3346.5,48.12180984]
[1735624740400,0.29923,3346.7,3346.5,47.82255984]
[1735624740602,0.75123,3346.7,3346.5,47.82255984]
[1735624741509,4.27816468,3346.7,3346.5,40.8]
[1735624741697,3.52693468,3346.7,3346.6,0.29924]
[1735624743398,3.52693468,3346.7,3346.5,47.82255984]
[1735624743706,3.52693468,3346.7,3346.6,0.29924]
[1735624746005,3.82615468,3346.8,3346.6,13.07531996]
[1735624746608,3.82616468,3346.8,3346.6,13.07531996]
[1735624746912,0.29923,3346.7,3346.6,13.07531996]
[1735624747205,3.52693468,3346.8,3346.7,6.05275012]
[1735624747603,3.82615468,3346.8,3346.7,5.75352012]
[1735624748108,3.52693468,3346.8,3346.7,6.05275012]
[1735624748706,3.52693468,3346.8,3346.7,13.07530996]
[1735624750308,3.52693468,3346.8,3346.7,6.05275012]
[1735624752210,3.82615468,3346.8,3346.7,5.75352012]
[1735624753711,3.82615468,3346.8,3346.7,4.69757323]
[1735624754008,3.52693468,3346.8,3346.7,4.69757323]
[1735624754415,3.52693468,3346.8,3346.7,4.99680323]
[1735624754608,0.29922,3346.9,3346.7,0.29923]
[1735624754609,5.00201659,3346.9,3346.7,0.29923]
[1735624755113,4.70279659,3346.9,3346.8,0.4449]
[1735624755302,4.70279659,3346.9,3346.8,0.74412]
[1735624755702,0.29919,3347.2,3346.9,0.29921]
[1735624755703,4.70279659,3347.0,3346.9,0.29921]
[1735624755908,4.70279659,3347.0,3346.9,41.99121]
[1735624756813,3.53176813,3347.1,3347.0,0.2992]
[1735624758011,3.83095813,3347.2,3347.0,6.05013063]
[1735624759308,3.53176813,3347.2,3347.0,4.69384276]
[1735624759515,3.53176813,3347.2,3347.1,0.29919]
[1735624760514,0.29919,3347.1,3347.0,4.69384276]
[1735624762417,0.2992,3347.0,3346.9,5.58584276]
[1735624763521,0.2992,3347.0,3346.9,5.88505276]
[1735624764014,3.97196813,3347.2,3346.9,5.58584276]
[1735624764217,4.27115813,3347.2,3347.0,0.2992]
[1735624764814,4.27115813,3347.2,3347.0,4.99304276]
[1735624765214,0.29919,3347.1,3347.0,4.69384276]
[1735624766721,3.53176813,3347.2,3347.1,0.29919]
[1735624767411,0.29918,3347.3,3347.0,4.69384276]
[1735624767412,3.53176813,3347.3,3347.2,0.29919]
[1735624769925,0.29917,3347.4,3347.1,4.69384276]
[1735624769926,3.83093813,3347.4,3347.1,4.69384276]
[1735624770126,3.83093813,3347.4,3347.1,4.99303276]
[1735624770324,0.29918,3347.3,3347.1,4.99303276]
[1735624770524,0.29918,3347.3,3347.2,0.4476]
[1735624771722,1.19448,3347.3,3347.2,0.4476]
[1735624772423,4.72624813,3347.3,3347.2,0.4476]
[1735624773623,1.19448,3347.3,3347.2,0.4476]
[1735624774831,4.72624813,3347.3,3347.2,0.4476]
[1735624775529,4.42706813,3347.3,3347.0,4.69384276]
[1735624775733,0.29919,3347.2,3347.0,5.12004276]
[1735624778130,0.29919,3347.2,3346.9,4.69384276]
[1735624778131,2.26767885,3347.2,3346.9,4.69384276]
[1735624778328,0.2992,3347.0,3346.9,4.69384276]
[1735624779432,4.70279659,3347.0,3346.5,0.4411]
[1735624779632,0.29924,3346.6,3346.5,41.2411]
[1735624782235,3.95908668,3346.8,3346.5,41.2411]
[1735624782434,3.82922668,3346.7,3346.5,41.54035]
[1735624783040,3.52998668,3346.7,3346.5,41.2411]
[1735624783340,3.52998668,3346.7,3346.6,0.29924]
[1735624784031,3.52998668,3346.7,3346.6,40.8]
[1735624784237,3.52998668,3346.7,3346.6,41.09924]
[1735624784432,0.72142,3346.9,3346.6,53.86494984]
[1735624784634,0.29922,3346.9,3346.7,0.8878]
[1735624785138,0.29922,3346.9,3346.7,1.18703]
[1735624785743,0.29922,3346.9,3346.7,5.87642063]
[1735624787157,0.29922,3346.9,3346.7,5.57719063]
[1735624788248,3.98298668,3347.0,3346.7,4.68939063]
[1735624788445,1.20322,3346.8,3346.7,4.68939063]
[1735624789550,0.29924,3346.6,3346.5,0.4411]
[1735624790140,0.29924,3346.6,3346.4,4.68939063]
[1735624790141,0.904,3346.8,3346.4,4.68939063]
[1735624790343,0.29925,3346.5,3346.4,4.68939063]
[1735624790553,0.29926,3346.4,3346.3,48.69719063]
[1735624791748,0.29926,3346.4,3346.3,3.2078]